bitfinex/quotes_ETHUSD_20230903
["timestamp","ask_amount","ask_price","bid_price","bid_amount"]
[1693774629491,4.646,1643.4,1642.9,0.34022133]
[1693774630486,4.646,1643.4,1643.0,0.01103611]
[1693774631500,4.646,1643.4,1642.9,0.34022133]
[1693774632510,4.646,1643.4,1643.0,0.01103611]
[1693774633492,4.646,1643.4,1642.9,0.34022133]
[1693774634410,4.646,1643.4,1643.0,0.01103611]
[1693774634725,1.545,1643.2,1643.0,0.01103611]
[1693774635009,13.7171,1643.1,1643.0,0.01103611]
[1693774635305,13.18315,1643.1,1643.0,0.01103611]
[1693774635489,21.0811,1643.1,1642.5,0.3081854]
[1693774635686,1.545,1643.0,1642.5,0.3081854]
[1693774636376,1.545,1643.0,1642.6,0.01065196]
[1693774637511,7.63151,1643.0,1642.6,0.01065196]
[1693774637811,9.739666,1643.0,1642.6,0.01065196]
[1693774638042,1.545,1642.7,1642.6,0.01065196]
[1693774638307,0.91023351,1642.7,1642.6,0.01065196]
[1693774638487,0.91023351,1642.7,1642.2,1.5685]
[1693774638684,0.91023351,1642.7,1642.0,0.63216489]
[1693774638685,1.545,1642.6,1642.0,0.63216489]
[1693774638889,1.545,1642.6,1642.0,4.77205487]
[1693774639080,1.545,1642.6,1642.1,1.53524143]
[1693774639280,3.4022,1642.7,1642.1,0.47720549]
[1693774639509,3.4022,1642.7,1642.2,0.0095109]
[1693774640511,3.4022,1642.7,1642.1,4.10937038]
[1693774640699,3.4022,1642.7,1642.2,1.05797742]
[1693774641508,3.4022,1642.7,1642.3,0.00950327]
[1693774641680,1.545,1642.4,1642.3,0.00950327]
[1693774641873,0.41635402,1642.4,1642.3,0.00950327]
[1693774642412,0.41635402,1642.4,1641.8,7.75430457]
[1693774642596,0.41635402,1642.4,1641.9,1.05813491]
[1693774643202,0.41635402,1642.4,1641.8,6.24956627]
[1693774643203,0.41635402,1642.4,1641.8,4.6612925]
[1693774643400,6.50515402,1642.4,1641.9,1.52426983]
[1693774643603,0.41635402,1642.4,1642.0,0.00916067]
[1693774644380,0.41635402,1642.4,1641.8,3.63177538]
[1693774644581,0.41635402,1642.4,1641.9,1.05814743]
[1693774645617,0.41635402,1642.4,1642.0,0.00843933]
[1693774646994,2.96215402,1642.4,1642.0,0.00843933]
[1693774647195,4.05251742,1642.4,1642.0,0.00843933]
[1693774647391,19.31191146,1642.4,1642.0,0.00843933]
[1693774647593,13.22314146,1642.4,1642.0,0.00843933]
[1693774647903,7.13437146,1642.4,1642.0,0.00843933]
[1693774648418,7.13437146,1642.4,1641.8,1.57943846]
[1693774648596,7.17265404,1642.4,1641.8,2.63761915]
[1693774648797,7.17265404,1642.4,1641.9,1.68995607]
[1693774649002,7.17265404,1642.4,1642.0,1.05818069]
[1693774649240,7.17265404,1642.4,1641.9,0.63177538]
[1693774649397,1.545,1642.3,1642.1,0.0081071]
[1693774650533,1.545,1642.3,1641.9,0.63177538]
[1693774651528,1.545,1642.3,1642.0,0.00811474]
[1693774652398,1.545,1642.3,1642.0,0.01117657]
[1693774653738,1.545,1642.3,1642.1,1.05818235]
[1693774653899,1.545,1642.3,1642.0,0.64295195]
[1693774654101,7.17265404,1642.4,1642.1,1.05818306]
[1693774654634,7.17265404,1642.4,1642.2,0.01116129]
[1693774655523,7.17265404,1642.4,1642.0,0.63177538]
[1693774655924,7.17265404,1642.4,1642.0,1.68995809]
[1693774656126,7.17265404,1642.4,1642.1,1.05818271]
[1693774656340,7.17265404,1642.4,1642.0,0.63177538]
[1693774656503,7.17265404,1642.4,1642.1,0.01116893]
[1693774656835,7.17265404,1642.4,1642.2,1.05819002]
[1693774657034,7.17265404,1642.4,1642.1,0.64294431]
[1693774657233,4.0908,1642.4,1642.2,1.05819019]
[1693774657410,4.545,1642.6,1642.2,1.05819019]
[1693774657610,2.3875,1642.6,1642.3,1.05819019]
[1693774657816,2.3875,1642.6,1642.2,1.57943846]
[1693774658005,2.3875,1642.6,1642.3,1.05809298]
[1693774658206,2.3875,1642.6,1642.2,1.57943846]
[1693774658404,31.955,1642.8,1642.2,1.57943846]
[1693774658405,30.41,1642.8,1642.4,0.64543124]
[1693774658607,2.3875,1642.9,1642.5,0.63428522]
[1693774658918,2.3875,1642.9,1642.5,1.58571305]
[1693774659099,2.3875,1642.9,1642.5,2.64372161]
[1693774659304,2.3875,1642.9,1642.6,1.69229378]
[1693774659634,2.3875,1642.9,1642.5,1.58571305]
[1693774659803,2.3875,1642.9,1642.6,1.69218147]
[1693774660005,2.3875,1642.9,1642.7,1.05789625]
[1693774660212,2.3875,1642.9,1642.6,0.63428522]
[1693774661105,5.3875,1642.9,1642.6,0.63428522]
[1693774661415,5.3875,1642.9,1642.7,0.01112186]
[1693774662504,5.3875,1642.9,1642.6,0.63428522]
[1693774663442,5.3875,1642.9,1642.7,0.01112312]
[1693774664613,5.3875,1642.9,1642.6,0.63428522]
[1693774665019,5.3875,1642.9,1642.5,1.58571305]
[1693774665446,5.3875,1642.9,1642.6,0.01113075]
[1693774666638,6.10577,1642.9,1642.6,0.01113075]
[1693774666852,1.545,1642.7,1642.6,0.01113075]
[1693774667211,7.63253,1642.7,1642.6,0.01113075]
[1693774667449,14.20006,1642.7,1642.2,0.63428522]
[1693774668050,14.20006,1642.7,1642.2,1.69237266]
[1693774668347,16.406905,1642.7,1642.3,1.05808744]
[1693774668565,1.545,1642.5,1642.3,0.0107253]
[1693774668911,2.4186,1642.6,1642.3,0.0107253]
[1693774671063,3.0,1642.9,1642.4,1.05794071]
[1693774671344,2.5256,1643.0,1642.5,1.05790537]
[1693774671550,3.0,1642.9,1642.5,0.01030726]
[1693774672536,4.545,1642.9,1642.5,0.01030726]
[1693774673746,4.545,1642.9,1642.3,4.66756709]
[1693774674053,3.0,1642.9,1642.4,2.15891654]
[1693774674252,3.0,1642.9,1642.5,1.05787461]
[1693774675033,3.0,1642.9,1642.4,1.10104193]
[1693774675034,3.0,1642.9,1642.4,0.46675671]
[1693774675431,3.0,1642.9,1642.5,0.01029973]
[1693774676160,1.545,1643.1,1642.5,0.01029973]
[1693774676333,4.545,1643.1,1642.5,0.4214339]
[1693774676534,3.0,1643.1,1642.6,1.05780738]
[1693774677524,3.0,1643.1,1642.7,0.01028447]
[1693774678557,32.8162,1643.2,1642.7,4.62685404]
[1693774678558,30.41,1643.2,1642.7,4.62685404]
[1693774678942,30.41,1643.2,1642.8,3.08185404]
[1693774679144,30.41,1643.2,1642.9,0.3081854]
[1693774679351,2.6908,1643.4,1642.9,0.3081854]
[1693774680249,3.0,1643.3,1642.9,0.3081854]
[1693774683140,3.55209464,1643.3,1642.6,6.23021305]
[1693774683341,3.55209464,1643.3,1642.7,4.13958072]
[1693774683548,5.50769464,1643.3,1642.7,3.08185404]
[1693774684142,2.163,1643.2,1642.7,3.08185404]
[1693774689141,7.67069464,1643.3,1642.7,3.08185404]
[1693774689377,7.67069464,1643.3,1642.8,0.3081854]
[1693774690175,2.163,1643.2,1642.6,1.6445]
[1693774690341,2.163,1643.2,1642.6,4.72635404]
[1693774691346,7.67069464,1643.3,1642.6,7.72635404]
[1693774691555,2.6908,1643.4,1642.7,4.13961591]
[1693774691774,0.101,1643.4,1642.8,3.63472346]
[1693774691974,0.101,1643.4,1642.9,4.13947346]
[1693774692195,0.101,1643.4,1642.9,3.08185404]
[1693774699508,0.101,1643.4,1643.0,0.01026282]
[1693774700215,0.101,1643.4,1643.0,3.09211686]
[1693774700374,0.101,1643.4,1643.1,0.30921169]
[1693774701391,0.101,1643.4,1643.2,0.01024757]
[1693774702509,0.101,1643.4,1643.1,0.30921169]
[1693774703410,2.5425,1643.6,1643.2,3.72638683]
[1693774703704,2.5425,1643.6,1643.3,1.05748404]
[1693774704611,2.5425,1643.6,1643.4,0.01023231]
[1693774705520,2.5425,1643.6,1643.2,3.71613926]
[1693774705809,2.5425,1643.6,1643.3,1.42906823]
[1693774705977,2.5425,1643.6,1643.3,0.37161393]
[1693774709221,1.9422,1643.7,1643.3,0.37161393]
[1693774709422,4.9422,1643.7,1643.3,2.06327545]
[1693774709623,4.9422,1643.7,1643.4,1.0573763]
[1693774710730,4.9422,1643.7,1643.3,0.37161393]
[1693774711098,4.8922,1643.7,1643.3,0.37161393]
[1693774711298,4.8922,1643.7,1643.3,2.06327904]
[1693774711494,4.8922,1643.7,1643.4,1.05737989]
[1693774711699,1.8922,1643.7,1643.3,3.45346797]
[1693774711900,1.8922,1643.7,1643.4,1.40271782]
[1693774712100,1.8922,1643.7,1643.4,0.3453468]
[1693774713491,1.8922,1643.7,1643.5,0.0129436]
[1693774714226,2.6589,1643.8,1643.5,0.0129436]
[1693774716632,0.101,1643.8,1643.5,0.0129436]
[1693774718625,0.101,1643.8,1643.5,3.09479764]
[1693774718827,0.101,1643.8,1643.6,0.30947976]
[1693774719445,0.101,1643.8,1643.7,0.01292835]
[1693774725814,0.101,1643.8,1643.7,3.09478239]
[1693774726138,0.101,1643.8,1643.7,5.69600516]
[1693774726339,0.101,1643.9,1643.7,6.33029038]
[1693774726635,0.101,1643.9,1643.8,4.77210585]
[1693774727415,0.101,1643.9,1643.8,3.71488308]
[1693774727613,0.101,1643.9,1643.8,3.09477226]
[1693774734326,0.001,1643.9,1643.8,3.09477226]
[1693774740260,0.001,1643.9,1643.8,4.15185095]
[1693774740590,0.001,1643.9,1643.8,6.64727878]
[1693774740857,0.001,1643.9,1643.8,7.27980391]
[1693774741066,0.001,1643.9,1643.8,8.13464135]
[1693774741966,0.001,1643.9,1643.8,7.50211622]
[1693774742130,0.001,1643.9,1643.8,8.13472154]
[1693774743456,0.101,1644.1,1644.0,0.001]
[1693774744582,0.101,1644.1,1644.0,0.01390298]
[1693774747849,0.101,1644.1,1644.0,0.01290298]
[1693774748584,0.101,1644.1,1643.8,4.5692968]
[1693774748784,0.101,1644.1,1643.9,1.51401432]
[1693774748951,0.101,1644.1,1643.9,3.53878372]
[1693774749566,0.101,1644.1,1644.0,0.01290298]
[1693774749991,15.2657,1644.1,1644.0,0.01290298]
[1693774750170,10.5815674,1644.1,1644.0,0.01290298]
[1693774750369,13.29741714,1644.1,1644.0,0.01290298]
[1693774750599,13.29741714,1644.1,1643.6,0.63260532]
[1693774750782,1.544,1644.0,1643.6,0.63260532]
[1693774751185,8.2069725,1644.1,1643.6,1.58403315]
[1693774751484,5.49112276,1644.1,1643.7,1.06862628]
[1693774751688,5.49112276,1644.1,1643.7,0.01144599]
[1693774752078,4.645,1644.1,1643.7,0.01144599]
[1693774752606,4.645,1644.1,1643.6,1.02358371]
[1693774752901,4.645,1644.1,1643.7,1.05715096]
[1693774755204,6.15894,1644.1,1643.7,1.05715096]
[1693774755407,6.15894,1644.1,1643.6,0.63260532]
[1693774755703,1.544,1644.0,1643.6,0.63260532]
[1693774756713,1.544,1644.0,1643.7,0.01144599]
[1693774759986,3.3548,1644.0,1643.7,0.01144599]
[1693774760628,3.3548,1644.0,1643.5,0.63260532]
[1693774760796,3.3548,1644.0,1643.5,4.77163773]
[1693774760797,2.4965,1643.9,1643.5,4.77163773]
[1693774760984,2.4965,1643.9,1643.6,1.53434214]
[1693774761187,2.4965,1643.9,1643.6,0.47716377]
[1693774761419,2.4965,1643.9,1643.7,0.01144599]
[1693774763522,2.4965,1643.9,1643.5,3.08185404]
[1693774763705,2.4965,1643.9,1643.5,3.58297744]
[1693774764398,2.4965,1643.9,1643.6,0.01145361]
[1693774768536,4.0405,1643.9,1643.6,0.01145361]
[1693774769445,4.0405,1643.9,1643.4,0.63260532]
[1693774769746,4.0405,1643.9,1643.4,1.68984149]
[1693774769941,4.0405,1643.9,1643.5,1.05723617]
[1693774770245,2.4965,1643.9,1643.6,1.05715391]
[1693774770425,2.4965,1643.9,1643.6,1.06860752]
[1693774770620,2.4965,1643.9,1643.6,0.47830669]
[1693774771562,2.4965,1643.9,1643.7,0.01100546]
[1693774780823,2.4965,1643.9,1643.5,3.67591297]
[1693774781023,2.4965,1643.9,1643.6,1.42475249]
[1693774781218,2.4965,1643.9,1643.6,0.3675913]
[1693774781462,2.4965,1643.9,1643.7,0.01327399]
[1693774793569,2.4965,1643.9,1643.5,3.67591297]
[1693774793772,2.4965,1643.9,1643.6,1.05718679]
[1693774794685,2.4965,1643.9,1643.7,0.01327399]
[1693774795480,2.4965,1643.9,1643.5,3.67591297]
[1693774795694,2.4965,1643.9,1643.6,1.424779]
[1693774795883,2.4965,1643.9,1643.6,0.3675913]
[1693774796453,2.4965,1643.9,1643.7,0.01327399]
[1693774797298,2.4965,1643.9,1643.5,3.63918696]
[1693774797484,2.4965,1643.9,1643.8,0.01275583]
[1693774798495,2.4965,1643.9,1643.5,3.63918696]
[1693774798700,2.4965,1643.9,1643.6,1.0571865]
[1693774799599,2.4965,1643.9,1643.7,0.01276345]
[1693774800674,5.91751538,1644.1,1643.8,3.08185404]
[1693774800675,0.101,1644.1,1643.8,3.08185404]
[1693774800871,0.101,1644.1,1643.9,2.60105566]
[1693774801074,0.101,1644.1,1644.0,1.05694399]
[1693774801276,0.101,1644.1,1644.0,6.31433836]
[1693774801791,0.101,1644.1,1644.0,6.94694368]
[1693774802168,0.101,1644.1,1644.0,7.19033068]
[1693774802366,0.101,1644.1,1644.0,6.55772536]
[1693774804187,0.101,1644.1,1644.0,5.01372536]
[1693774804813,0.101,1644.1,1644.0,6.55772536]
[1693774805119,0.101,1644.1,1644.0,7.03772536]
[1693774805318,0.101,1644.1,1644.0,5.01372536]
[1693774805520,0.101,1644.1,1644.0,3.95678137]
[1693774805708,0.101,1644.1,1644.0,5.01368123]
[1693774806021,0.101,1644.1,1644.0,5.01367123]
[1693774806727,0.101,1644.1,1644.0,3.95678137]
[1693774806926,0.101,1644.1,1644.0,5.01365157]
[1693774809107,0.101,1644.1,1644.0,6.55765157]
[1693774811732,0.101,1644.2,1644.0,6.55765157]
[1693774811897,0.101,1644.2,1644.1,6.3384894]
[1693774813145,0.06256797,1644.2,1644.1,6.3384894]
[1693774815449,0.06256797,1644.2,1644.1,6.97109472]
[1693774817457,0.06256797,1644.2,1644.1,4.7944894]
[1693774822629,0.06256797,1644.2,1644.1,4.80719246]
[1693774823887,0.06256797,1644.2,1644.1,1.06957326]
[1693774825397,0.06256797,1644.2,1644.1,4.1514273]
[1693774825690,0.101,1644.3,1644.1,7.12685513]
[1693774825835,0.101,1644.3,1644.2,4.77043604]
[1693774826487,0.101,1644.3,1644.2,4.7831265]
[1693774826690,0.101,1644.3,1644.2,5.55898193]
[1693774829987,0.101,1644.3,1644.2,7.42269796]
[1693774830683,0.101,1644.3,1644.2,8.6912684]
[1693774830848,0.101,1644.3,1644.2,7.42269796]
[1693774831383,0.101,1644.3,1644.2,8.6912684]
[1693774831572,0.101,1644.3,1644.2,8.21984057]
[1693774833100,0.101,1644.3,1644.2,8.21364041]
[1693774835894,0.101,1644.3,1644.2,9.79191466]
[1693774836959,0.101,1644.3,1644.2,8.21364041]
[1693774838615,0.101,1644.3,1644.2,9.79191466]
[1693774839172,0.101,1644.3,1644.2,6.66964041]
[1693774840186,0.101,1644.3,1644.2,6.18964041]
[1693774841214,0.101,1644.3,1644.2,2.33193094]
[1693774841387,0.101,1644.3,1644.2,1.06931154]
[1693774841695,0.101,1644.3,1644.2,1.701253]
[1693774841893,0.101,1644.3,1644.2,1.06931154]
[1693774845781,0.101,1644.3,1644.2,0.64463192]
[1693774846092,0.5655,1644.3,1644.2,0.64463192]
[1693774846483,0.5655,1644.3,1644.2,1.701253]
[1693774846911,0.5655,1644.3,1644.2,1.06931154]
[1693774848282,0.101,1644.3,1644.2,1.701253]
[1693774848482,0.101,1644.3,1644.2,1.68856254]
[1693774848683,0.101,1644.3,1644.2,0.63194146]
[1693774849430,0.101,1644.3,1644.2,0.64223149]
[1693774849779,0.101,1644.3,1644.2,1.69885257]
[1693774850914,0.101,1644.3,1644.2,0.95820223]
[1693774851283,0.101,1644.3,1644.2,2.01482331]
[1693774851782,4.9054,1644.5,1644.2,2.01482331]
[1693774851987,4.9054,1644.5,1644.3,4.77171281]
[1693774852205,4.9054,1644.5,1644.4,1.05662108]
[1693774852429,3.101,1644.5,1644.4,1.05662108]
[1693774852633,3.101,1644.5,1644.4,1.06689588]
[1693774853819,3.101,1644.5,1644.4,0.0102748]
[1693774854607,3.101,1644.5,1644.2,1.58114989]
[1693774854917,3.101,1644.5,1644.3,1.05676486]
[1693774855516,3.101,1644.5,1644.4,0.01026756]
[1693774856519,3.101,1644.5,1644.2,3.71509173]
[1693774856716,3.101,1644.5,1644.2,3.54815443]
[1693774857416,3.101,1644.5,1644.3,0.01027517]
[1693774862519,4.645,1644.5,1644.3,0.01027517]
[1693774863022,6.4786,1644.5,1644.3,0.01027517]
[1693774863538,6.4786,1644.5,1644.0,0.63336969]
[1693774863743,1.544,1644.2,1644.0,1.05691642]
[1693774863919,1.544,1644.2,1643.8,0.63336969]
[1693774864122,1.544,1644.2,1643.8,4.77218327]
[1693774864424,1.544,1644.2,1643.9,1.06654124]
[1693774864605,2.13742,1644.2,1643.9,0.0095817]
[1693774866253,1.544,1644.0,1643.9,0.0095817]
[1693774866553,1.544,1644.0,1643.6,0.63336969]
[1693774866726,1.544,1643.9,1643.6,0.63336969]
[1693774867043,1.544,1644.0,1643.6,0.63336969]
[1693774867466,4.1449,1644.0,1643.7,0.00883347]
[1693774867761,1.544,1643.9,1643.7,0.00883347]
[1693774868064,1.544,1643.8,1643.7,0.00883347]
[1693774868246,1.544,1643.9,1643.7,0.00883347]
[1693774868458,4.544,1643.9,1643.5,0.63336969]
[1693774869568,4.544,1643.9,1643.6,0.00849958]
[1693774869935,5.291869,1643.9,1643.6,0.00849958]
[1693774873462,3.0,1643.9,1643.6,0.00849958]
[1693774873668,3.0,1643.9,1643.6,1.69894952]
[1693774873969,3.0,1643.9,1643.7,1.05708025]
[1693774874660,3.0,1643.9,1643.8,0.00848433]
[1693774875572,3.0,1643.9,1643.6,0.63336969]
[1693774876536,3.0,1643.9,1643.7,0.00849195]
[1693774879138,5.25849,1643.9,1643.7,0.00849195]
[1693774879992,5.25849,1643.9,1643.6,0.59186164]
[1693774880354,5.25849,1643.9,1643.7,1.05712443]
[1693774880559,7.15519,1643.9,1643.7,0.00816534]
[1693774880793,5.25849,1643.9,1643.7,0.00816534]
[1693774881453,5.25849,1643.9,1643.4,0.95005454]
[1693774881454,2.069849,1643.8,1643.4,0.95005454]
[1693774881657,1.544,1643.6,1643.4,1.05721223]
[1693774882283,1.544,1643.6,1643.3,2.21679392]
[1693774882284,1.544,1643.6,1643.5,1.05721223]
[1693774882485,1.95593,1643.6,1643.5,1.06476574]
[1693774886491,0.82822141,1643.6,1643.5,1.06476574]
[1693774888107,2.5753,1643.7,1643.5,0.95760805]
[1693774888312,2.5753,1643.7,1643.5,2.01482028]
[1693774888477,2.5753,1643.7,1643.6,1.05721223]
[1693774889507,4.1193,1643.7,1643.6,1.06475989]
[1693774892084,3.48496458,1643.7,1643.6,1.06477337]
[1693774893005,4.63147804,1643.7,1643.6,1.06477337]
[1693774893414,4.63147804,1643.7,1643.6,1.06790017]
[1693774893602,3.48496458,1643.7,1643.6,1.06790017]
[1693774893794,3.48496458,1643.7,1643.6,1.32032238]
[1693774894105,1.94096458,1643.7,1643.6,1.32032238]
[1693774894610,3.48496458,1643.7,1643.6,1.32032238]
[1693774895182,3.48496458,1643.7,1643.6,0.26309667]
[1693774895384,8.12331307,1643.7,1643.6,0.26309667]
[1693774896019,14.20714307,1643.7,1643.6,0.26309667]
[1693774896313,14.20714307,1643.7,1643.6,0.01067446]
[1693774896520,23.37282711,1643.7,1643.4,0.63259147]
[1693774896818,17.28899711,1643.7,1643.6,0.2386136]
[1693774897187,17.28899711,1643.7,1643.4,0.63259147]
[1693774897388,1.72889971,1643.6,1643.4,0.63259147]
[1693774899100,1.544,1643.5,1643.4,0.63259147]
[1693774899822,1.544,1643.5,1643.4,0.87155218]
[1693774900120,1.544,1643.6,1643.4,0.87155218]
[1693774900316,6.97678661,1643.7,1643.5,1.05729633]
[1693774900818,7.86413527,1643.7,1643.4,0.87155218]
[1693774901119,7.86413527,1643.7,1643.5,1.05724772]
[1693774901286,1.544,1643.6,1643.5,1.05724772]
[1693774901688,1.544,1643.6,1643.5,1.29603486]
[1693774902413,1.544,1643.6,1643.5,1.30631884]
[1693774903705,1.544,1643.6,1643.5,1.93891031]
[1693774903940,1.544,1643.6,1643.5,1.70012317]
[1693774904128,1.544,1643.6,1643.5,1.93859652]
[1693774907235,11.41461353,1643.6,1643.5,1.30600505]
[1693774907628,11.41461353,1643.6,1643.5,1.05724772]
[1693774907829,11.41461353,1643.6,1643.4,0.63259147]
[1693774907830,11.41461353,1643.6,1643.4,0.63364761]
[1693774908042,1.544,1643.5,1643.4,0.63364761]
[1693774908246,2.68546135,1643.5,1643.4,0.63364761]
[1693774908415,5.68546135,1643.5,1643.4,1.70125701]
[1693774910409,5.68546135,1643.5,1643.4,1.69100638]
[1693774910937,5.68546135,1643.5,1643.4,0.63364761]
[1693774911641,5.68546135,1643.5,1643.4,1.05735877]
[1693774911642,13.31403135,1643.5,1643.4,1.05735877]
[1693774911841,13.31403135,1643.5,1643.3,1.69100638]
[1693774912148,4.14146135,1643.5,1643.4,1.05735877]
[1693774912306,5.68546135,1643.5,1643.4,1.05735877]
[1693774912511,5.68546135,1643.5,1643.3,1.58411903]
[1693774912736,1.544,1643.4,1643.3,0.63364761]
[1693774913324,1.544,1643.4,1643.3,1.58411903]
[1693774913524,1.544,1643.4,1643.3,0.63364761]
[1693774915532,2.11254614,1643.4,1643.3,0.63364761]
[1693774917751,2.11254614,1643.4,1643.3,1.05742079]
[1693774917950,2.11254614,1643.4,1643.2,1.58411903]
[1693774918523,1.544,1643.4,1643.3,0.25088344]
[1693774918726,1.544,1643.4,1643.3,1.30830423]
[1693774920463,4.544,1643.4,1643.3,1.30830423]
[1693774921164,4.544,1643.4,1643.3,0.01026936]
[1693774921656,4.544,1643.4,1643.1,1.58411903]
[1693774921657,6.8945,1643.4,1643.2,0.63364761]
[1693774921861,8.30655414,1643.4,1643.2,0.63364761]
[1693774922264,8.30655414,1643.4,1643.1,1.58411903]
[1693774922454,8.30655414,1643.4,1643.3,0.01026936]
[1693774923058,8.30655414,1643.4,1643.3,1.06769072]
[1693774923556,8.30655414,1643.4,1643.1,0.63364761]
[1693774923760,6.8945,1643.4,1643.1,1.69106851]
[1693774924159,6.8945,1643.4,1643.2,0.24078769]
[1693774924664,6.8945,1643.4,1643.1,1.58411903]
[1693774924866,6.8945,1643.4,1643.1,2.64154095]
[1693774925232,6.8945,1643.4,1643.2,0.24078769]
[1693774925433,8.35411025,1643.4,1643.2,0.24078769]
[1693774925635,8.35411025,1643.4,1643.1,1.58411903]
[1693774925836,8.35411025,1643.4,1643.1,2.64153869]
[1693774926036,8.35411025,1643.4,1643.3,0.24030025]
[1693774926234,8.35411025,1643.4,1643.1,1.58411903]
[1693774926466,8.35411025,1643.4,1643.3,0.01026936]
[1693774927435,8.35411025,1643.4,1643.1,1.58411903]
[1693774927645,8.35411025,1643.4,1643.3,0.24061408]
[1693774928060,8.35411025,1643.4,1643.1,1.58411903]
[1693774928232,8.35411025,1643.4,1643.1,2.64154578]
[1693774928436,8.35411025,1643.4,1643.3,0.24061408]
[1693774928860,8.35411025,1643.4,1643.2,0.01027698]
[1693774929543,8.35411025,1643.4,1643.1,1.58411903]
[1693774929870,8.35411025,1643.4,1643.3,0.24030025]
[1693774930033,8.35411025,1643.4,1643.1,1.58411903]
[1693774930237,8.35411025,1643.4,1643.1,2.64154622]
[1693774930439,8.35411025,1643.4,1643.2,0.01027698]
[1693774931565,8.35411025,1643.4,1643.1,1.58411903]
[1693774931774,8.35411025,1643.4,1643.1,2.64153827]
[1693774932074,8.35411025,1643.4,1643.3,0.24030025]
[1693774932666,8.35411025,1643.4,1643.1,0.63364761]
[1693774932866,6.8945,1643.4,1643.1,1.69107421]
[1693774933071,6.8945,1643.4,1643.3,0.24061408]
[1693774933656,6.8945,1643.4,1643.1,1.58411903]
[1693774933856,6.8945,1643.4,1643.1,2.64153878]
[1693774934065,6.8945,1643.4,1643.2,0.24047384]
[1693774934264,5.3505,1643.4,1643.2,0.24047384]
[1693774934468,5.3505,1643.4,1643.3,1.06767817]
[1693774934746,5.3505,1643.4,1643.3,0.25056961]
[1693774935055,5.3505,1643.4,1643.3,0.01026936]
[1693774935562,5.3505,1643.4,1643.1,1.58411903]
[1693774935883,5.3505,1643.4,1643.1,2.64151913]
[1693774936052,5.3505,1643.4,1643.2,0.24078769]
[1693774936255,2.3505,1643.4,1643.2,5.96416086]
[1693774936454,2.3505,1643.4,1643.3,4.78317111]
[1693774936978,0.49182203,1643.7,1643.3,5.02347136]
[1693774937189,3.8932,1643.9,1643.4,1.0574001]
[1693774937341,3.8932,1643.9,1643.4,1.55974724]
[1693774937547,3.8932,1643.9,1643.4,0.51260887]
[1693774937776,3.0,1643.8,1643.4,0.51260887]
[1693774939082,1.544,1643.7,1643.4,0.51260887]
[1693774939379,1.544,1643.7,1643.4,0.01026173]
[1693774943560,1.544,1643.6,1643.4,0.01026173]
[1693774944813,1.544,1643.5,1643.4,0.01026173]
[1693774945556,4.026,1643.5,1643.1,0.63364761]
[1693774945875,1.544,1643.4,1643.2,0.24078769]
[1693774946405,4.026,1643.5,1643.2,0.24078769]
[1693774946607,4.026,1643.5,1643.3,0.01026936]
[1693774947586,4.026,1643.5,1643.1,1.58411903]
[1693774947880,4.026,1643.5,1643.1,2.30676189]
[1693774948081,4.026,1643.5,1643.2,1.29787669]
[1693774948281,4.026,1643.5,1643.2,0.24047384]
[1693774948531,4.026,1643.5,1643.3,0.01026936]
[1693774948688,1.544,1643.5,1643.3,0.01026936]
[1693774948887,9.737678,1643.5,1643.3,0.01026936]
[1693774949101,1.544,1643.4,1643.3,0.01026936]
[1693774949577,6.3302,1643.4,1643.0,0.63364761]
[1693774949974,12.41517,1643.4,1642.9,2.64163565]
[1693774950175,2.4565,1643.3,1643.1,0.24058681]
[1693774950473,13.029007,1643.3,1643.2,0.01027748]
[1693774950724,14.573007,1643.3,1643.2,0.01027748]
[1693774950876,14.572977,1643.3,1643.2,0.01027748]
[1693774951080,20.658287,1643.3,1643.2,0.01027748]
[1693774951582,20.658287,1643.3,1642.9,0.63364761]
[1693774951790,7.62971,1643.2,1642.9,0.63364761]
[1693774952304,7.62971,1643.2,1643.0,0.24100022]
[1693774952607,1.544,1643.2,1643.0,0.25359013]
[1693774952974,4.544,1643.2,1643.0,0.25359013]
[1693774953220,4.544,1643.2,1643.0,0.01258991]
[1693774953420,6.0013037,1643.2,1643.0,0.01258991]
[1693774953576,6.0013037,1643.2,1642.9,0.63364761]
[1693774954095,6.0013037,1643.2,1643.1,0.28836357]
[1693774954863,6.0013037,1643.2,1642.8,0.63364761]
[1693774955177,1.544,1643.1,1642.8,0.63364761]
[1693774955477,1.544,1643.1,1642.9,0.30144423]
[1693774955676,7.9119037,1643.2,1642.9,0.30144423]
[1693774956211,6.4546,1643.2,1642.9,0.30144423]
[1693774958907,6.4546,1643.2,1642.9,0.93509184]
[1693774959107,6.4546,1643.2,1643.0,1.0575404]
[1693774959422,6.4546,1643.2,1642.9,0.30144423]
[1693774959629,6.4546,1643.2,1643.1,0.01258228]
[1693774959797,7.4944267,1643.2,1643.1,0.01258228]
[1693774960525,7.4944267,1643.2,1642.8,1.58411903]
[1693774960726,6.4546,1643.2,1642.8,1.58411903]
[1693774960939,6.4546,1643.2,1642.9,0.28880808]
[1693774961298,6.4546,1643.2,1642.8,1.58411903]
[1693774961839,6.4546,1643.2,1643.0,0.301398]
[1693774962322,6.4546,1643.2,1643.0,0.01258991]
[1693774962553,7.39375892,1643.2,1642.8,1.58411903]
[1693774962738,6.4546,1643.2,1642.8,1.58411903]
[1693774962940,6.4546,1643.2,1642.9,1.05754751]
[1693774963135,6.4546,1643.2,1642.9,0.28880808]
[1693774963301,6.4546,1643.2,1642.8,1.58411903]
[1693774963501,6.4546,1643.2,1643.0,0.01258991]
[1693774964409,6.4546,1643.2,1642.8,0.63364761]
[1693774964950,6.4546,1643.2,1642.9,0.28880808]
[1693774965552,6.4546,1643.2,1643.0,0.01258991]
[1693774966455,6.4546,1643.2,1642.8,0.63364761]
[1693774966956,6.4546,1643.2,1642.9,0.28880808]
[1693774967305,6.4546,1643.2,1642.8,0.63364761]
[1693774967622,6.4546,1643.2,1643.0,0.01258991]
[1693774967924,0.64546,1643.1,1643.0,0.01258991]
[1693774968109,6.4546,1643.2,1643.0,0.01258991]
[1693774968720,6.4546,1643.2,1642.8,0.63364761]
[1693774969120,6.4546,1643.2,1643.1,0.28849362]